fUSD/lending_fUSD_20250804
["ID","MTS","AMOUNT","RATE_DAILY","PERIOD"]
[377181702,1754268699253,-400.0,0.0005031,120]
[377181703,1754268699262,-151.0,0.0005031,120]
[377181704,1754268699271,-400.0,0.0005031,120]
[377181705,1754268699280,-492.61,0.0005031,120]
[377181706,1754268699290,-1019.68,0.0005031,120]
[377181707,1754268699299,-400.0,0.0005031,120]
[377181708,1754268699308,-400.0,0.0005031,120]
[377181709,1754268699318,-693.58,0.0005031,120]
[377181710,1754268699327,-587.22,0.0005031,120]
[377181711,1754268699336,-703.36,0.0005031,120]
[377181712,1754268699345,-400.0,0.0005031,120]
[377181713,1754268699355,-400.0,0.0005031,120]
[377181714,1754268699365,-543.65,0.0005031,120]
[377181715,1754268699374,-400.0,0.0005031,120]
[377181716,1754268699383,-400.0,0.0005031,120]
[377181717,1754268699392,-468.51,0.0005031,120]
[377181718,1754268699401,-495.42,0.0005031,120]
[377181719,1754268699410,-571.01,0.0005031,120]
[377181720,1754268699419,-400.0,0.0005031,120]
[377181721,1754268699429,-428.27334433,0.0005031,120]
[377181722,1754268699439,-951.61,0.0005031,120]
[377181723,1754268699448,-1324.48,0.0005031,120]
[377181724,1754268699457,-926.35,0.0005031,120]
[377181725,1754268699466,-942.67,0.0005031,120]
[377181726,1754268699475,-400.0,0.0005031,120]
[377181727,1754268699484,-400.0,0.0005031,120]
[377181728,1754268699494,-400.0,0.0005031,120]
[377181729,1754268699503,-774.71,0.0005031,2]
[377181730,1754268699513,-151.0,0.0005031,120]
[377181731,1754268699522,-456.96,0.0005031,120]
[377181732,1754268699531,-400.0,0.0005031,120]
[377181733,1754268699541,-210.188597,0.0005031,120]
[377181734,1754268699551,-400.0,0.0005031,120]
[377181735,1754268699560,-400.0,0.0005031,120]
[377181736,1754268699569,-514.87,0.0005031,120]
[377181737,1754268699578,-415.85,0.0005031,120]
[377181738,1754268699588,-903.59,0.0005031,120]
[377181739,1754268699597,-1185.83,0.0005031,120]
[377181740,1754268699607,-400.0,0.0005031,120]
[377181741,1754268699616,-400.0,0.0005031,120]
[377181742,1754268699626,-400.0,0.0005031,120]
[377181743,1754268699635,-151.0,0.0005031,120]
[377181744,1754268699644,-400.0,0.0005031,120]
[377181745,1754268699654,-1465.1,0.0005031,120]
[377181746,1754268699663,-857.32,0.0005031,120]
[377181747,1754268699673,-400.0,0.0005031,120]
[377181748,1754268699685,-524.75,0.0005031,120]
[377181749,1754268699695,-400.0,0.0005031,120]
[377181750,1754268699704,-415.82,0.0005031,120]
[377181751,1754268699714,-400.0,0.0005031,120]
[377181752,1754268699723,-400.0,0.0005031,120]
[377181753,1754268699733,-400.0,0.0005031,120]
[377181754,1754268699742,-700.06,0.0005031,120]
[377181755,1754268699752,-1050.8,0.0005031,120]
[377181756,1754268699762,-1526.54,0.0005031,120]
[377181757,1754268699772,-400.0,0.0005031,120]
[377181758,1754268699780,-151.0,0.0005031,120]
[377181759,1754268699790,-400.0,0.0005031,120]
[377181760,1754268699799,-400.0,0.0005031,120]
[377181761,1754268699808,-894.73,0.0005031,120]
[377181762,1754268699817,-204.054223,0.0005031,120]
[377181763,1754268699827,-204.054223,0.0005031,120]
[377181764,1754268699836,-400.0,0.0005031,120]
[377181765,1754268699846,-915.67,0.0005031,120]
[377181766,1754268699856,-1175.66,0.0005031,120]
[377181767,1754268699866,-966.88,0.0005031,120]
[377181768,1754268699875,-400.0,0.0005031,120]
[377181769,1754268699884,-472.66,0.0005031,120]
[377181770,1754268699893,-400.0,0.0005031,120]
[377181771,1754268699903,-400.0,0.0005031,120]
[377181772,1754268699913,-300.0,0.0005031,120]
[377181773,1754268699922,-400.0,0.0005031,120]
[377181774,1754268699931,-403.6032022,0.0005031,120]
[377181775,1754268699941,-400.0,0.0005031,120]
[377181776,1754268699950,-400.0,0.0005031,120]
[377181777,1754268699960,-1505.21,0.0005031,120]
[377181778,1754268699969,-647.16,0.0005031,120]
[377181779,1754268699979,-400.0,0.0005031,120]
[377181780,1754268699988,-1025.56,0.0005031,120]
[377181781,1754268699998,-400.0,0.0005031,120]
[377181782,1754268700007,-400.0,0.0005031,120]
[377181783,1754268700018,-400.0,0.0005031,120]
[377181784,1754268700028,-1338.88,0.0005031,120]
[377181785,1754268700037,-400.0,0.0005031,120]
[377181786,1754268700047,-430.02,0.0005031,120]
[377181787,1754268700057,-1087.32,0.0005031,120]
[377181788,1754268700066,-400.0,0.0005031,120]
[377181789,1754268700077,-516.68,0.0005031,120]
[377181790,1754268700087,-400.0,0.0005031,120]
[377181791,1754268700096,-801.59,0.0005031,120]
[377181792,1754268700108,-456.45,0.0005031,120]
[377181793,1754268700117,-400.0,0.0005031,120]
[377181794,1754268700127,-400.0,0.0005031,120]
[377181795,1754268700138,-400.0,0.0005031,120]
[377181796,1754268700148,-1552.07,0.0005031,120]
[377181797,1754268700158,-400.0,0.0005031,120]
[377181798,1754268700168,-421.03,0.0005031,120]
[377181799,1754268700177,-979.49,0.0005031,120]
[377181800,1754268700187,-400.0,0.0005031,120]
[377181801,1754268700197,-400.0,0.0005031,120]
[377181802,1754268700206,-500.0,0.0005031,120]
[377181803,1754268700215,-400.0,0.0005031,120]
[377181804,1754268700225,-635.5,0.0005031,120]
[377181805,1754268700234,-400.0,0.0005031,120]
[377181806,1754268700243,-400.0,0.0005031,120]
[377181807,1754268700253,-400.0,0.0005031,120]
[377181808,1754268700263,-400.0,0.0005031,60]
[377181809,1754268700273,-698.78,0.0005031,120]
[377181810,1754268700282,-400.0,0.0005031,120]
[377181811,1754268700292,-400.0,0.0005031,120]
[377181812,1754268700301,-573.51,0.0005031,120]
[377181813,1754268700311,-400.0,0.0005031,120]
[377181814,1754268700320,-1529.14,0.0005031,120]
[377181815,1754268700330,-400.0,0.0005031,120]
[377181816,1754268700339,-458.21,0.0005031,120]
[377181817,1754268700349,-400.0,0.0005031,120]
[377181818,1754268700359,-400.0,0.0005031,120]
[377181819,1754268700369,-789.14,0.0005031,120]
[377181820,1754268700378,-400.0,0.0005031,120]
[377181821,1754268700388,-400.0,0.0005031,120]
[377181822,1754268700398,-400.0,0.0005031,120]
[377181823,1754268700407,-400.0,0.0005031,120]
[377181824,1754268700417,-670.31,0.0005031,120]
[377181825,1754268700426,-423.23,0.0005031,30]
[377181826,1754268700436,-400.0,0.0005031,120]
[377181827,1754268700446,-400.0,0.0005031,120]
[377181828,1754268700455,-488.78,0.0005031,120]
[377181829,1754268700465,-190.66426237,0.0005031,120]
[377181830,1754268700475,-526.89,0.0005031,120]
[377181831,1754268700485,-400.0,0.0005031,120]
[377181832,1754268700495,-1448.55,0.0005031,120]
[377181833,1754268700505,-400.0,0.0005031,120]
[377181834,1754268700514,-400.0,0.0005031,120]
[377181835,1754268700524,-400.0,0.0005031,120]
[377181836,1754268700533,-1301.65,0.0005031,120]
[377181837,1754268700543,-400.0,0.0005031,120]
[377181838,1754268700552,-400.0,0.0005031,120]
[377181839,1754268700562,-400.0,0.0005031,120]
[377181840,1754268700571,-1338.8,0.0005031,120]
[377181841,1754268700581,-300.0,0.0005031,120]
[377181842,1754268700590,-400.0,0.0005031,120]
[377181843,1754268700599,-1237.03,0.0005031,120]
[377181844,1754268700609,-712.17,0.0005031,120]
[377181845,1754268700619,-769.66,0.0005031,120]
[377181846,1754268700630,-442.21,0.0005031,120]
[377181847,1754268700639,-701.08,0.0005031,120]
[377181848,1754268700650,-400.0,0.0005031,120]
[377181849,1754268700662,-400.0,0.0005031,120]
[377181850,1754268700672,-400.0,0.0005031,120]
[377181851,1754268700686,-400.0,0.0005031,120]
[377181852,1754268700695,-400.0,0.0005031,120]
[377181853,1754268700705,-400.0,0.0005031,120]
[377181854,1754268700715,-342.22626882,0.0005031,120]
[377181855,1754268700741,-805.41,0.0005031,120]
[377181856,1754268700752,-400.0,0.0005031,120]
[377181857,1754268700762,-696.53,0.0005031,120]
[377181858,1754268700771,-400.0,0.0005031,120]
[377181859,1754268700783,-400.0,0.0005031,120]
[377181860,1754268700793,-912.95,0.0005031,120]
[377181861,1754268700803,-400.0,0.0005031,120]
[377181862,1754268700813,-905.71,0.0005031,120]
[377181863,1754268700823,-400.0,0.0005031,120]
[377181864,1754268700836,-580.23,0.0005031,120]
[377181865,1754268700847,-793.8,0.0005031,120]
[377181866,1754268700858,-400.0,0.0005031,120]
[377181867,1754268700868,-552.79,0.0005031,120]
[377181868,1754268700877,-400.0,0.0005031,120]
[377181869,1754268700887,-1237.18,0.0005031,120]
[377181870,1754268700897,-450.25,0.0005031,120]
[377181871,1754268700907,-795.25,0.0005031,120]
[377181872,1754268700917,-400.0,0.0005031,120]
[377181873,1754268700929,-400.0,0.0005031,120]
[377181874,1754268700940,-400.0,0.0005031,120]
[377181875,1754268700950,-756.53,0.0005031,120]
[377181876,1754268700960,-1351.92,0.0005031,120]
[377181877,1754268700971,-400.0,0.0005031,120]
[377181878,1754268700983,-1388.21,0.0005031,120]
[377181879,1754268700992,-698.43,0.0005031,120]
[377181880,1754268701003,-400.0,0.0005031,120]
[377181881,1754268701013,-589.66,0.0005031,120]
[377181882,1754268701024,-400.0,0.0005031,120]
[377181883,1754268701034,-867.69,0.0005031,120]
[377181884,1754268701044,-151.0,0.0005031,120]
[377181885,1754268701054,-400.0,0.0005031,120]
[377181886,1754268701065,-400.0,0.0005031,120]
[377181887,1754268701075,-400.0,0.0005031,120]
[377181888,1754268701085,-400.0,0.0005031,120]
[377181889,1754268701095,-446.14,0.0005031,120]
[377181890,1754268701106,-596.56,0.0005031,120]
[377181891,1754268701116,-400.0,0.0005031,120]
[377181892,1754268701126,-400.0,0.0005031,120]
[377181893,1754268701137,-400.0,0.0005031,120]
[377181894,1754268701147,-151.0,0.0005031,120]
[377181895,1754268701158,-841.86,0.0005031,120]
[377181896,1754268701168,-400.0,0.0005031,120]
[377181897,1754268701179,-400.0,0.0005031,120]
[377181898,1754268701189,-611.64,0.0005031,120]
[377181899,1754268701199,-400.0,0.0005031,120]
[377181900,1754268701209,-400.0,0.0005031,120]
[377181901,1754268701220,-400.0,0.0005031,120]
[377181902,1754268701230,-724.66,0.0005031,120]
[377181903,1754268701240,-881.24,0.0005031,120]
[377181904,1754268701250,-456.99,0.0005031,120]
[377181905,1754268701260,-276.991448,0.0005031,120]
[377181906,1754268701270,-222.89007,0.0005031,120]
[377181907,1754268701280,-980.28,0.0005031,120]
[377181908,1754268701290,-222.89007,0.0005031,120]
[377181909,1754268701301,-276.991448,0.0005031,120]
[377181910,1754268701311,-400.0,0.0005031,120]
[377181911,1754268701321,-510.92,0.0005031,120]
[377181912,1754268701332,-400.0,0.0005031,120]
[377181913,1754268701343,-174.594282,0.0005031,120]
[377181914,1754268701353,-174.594282,0.0005031,120]
[377181915,1754268701364,-400.0,0.0005031,120]
[377181916,1754268701374,-151.0,0.0005031,120]
[377181917,1754268701385,-400.0,0.0005031,120]
[377181918,1754268701395,-459.38,0.0005031,120]
[377181919,1754268701405,-400.0,0.0005031,120]
[377181920,1754268701415,-400.0,0.0005031,120]
[377181921,1754268701425,-400.0,0.0005031,120]
[377181922,1754268701436,-400.0,0.0005031,120]
[377181923,1754268701445,-191.337176,0.0005031,120]
[377181924,1754268701455,-400.0,0.0005031,120]
[377181925,1754268701465,-358.46052238,0.0005031,120]
[377181926,1754268701475,-400.0,0.0005031,120]
[377181927,1754268701485,-400.0,0.0005031,120]
[377181928,1754268701495,-611.13,0.0005031,120]
[377181929,1754268701506,-657.96,0.0005031,120]
[377181930,1754268701517,-1601.2,0.0005031,120]
[377181931,1754268701527,-400.0,0.0005031,120]
[377181932,1754268701538,-529.68,0.0005031,120]
[377181933,1754268701548,-400.0,0.0005031,120]
[377181934,1754268701558,-927.89,0.0005031,120]
[377181935,1754268701568,-150.0,0.00050318,7]
[377181936,1754268701578,-150.0,0.00050328,7]
[377181937,1754268701588,-150.0,0.00050352,7]
[377181938,1754268701598,-150.0,0.00050367,30]
[377181939,1754268701609,-150.0,0.00050373,7]
[377181940,1754268701619,-1000.0,0.00050374,30]
[377181941,1754268701628,-1000.0,0.0005039,30]
[377181942,1754268701638,-515.0,0.00050396,26]
[377181943,1754268701649,-152.0,0.000504,120]
[377181944,1754268701659,-855.13,0.00050409,120]
[377181945,1754268701668,-150.0,0.00050409,7]
[377181946,1754268701679,-151.0,0.0005041,120]
[377181947,1754268701693,-400.0,0.0005041,120]
[377181948,1754268701703,-168.355508,0.0005041,60]
[377181949,1754268701713,-400.0,0.0005041,120]
[377181950,1754268701722,-168.355508,0.0005041,60]
[377181951,1754268701733,-400.0,0.0005041,120]
[377181952,1754268701743,-1244.74,0.0005041,120]
[377181953,1754268701753,-826.02,0.0005041,120]
[377181954,1754268701765,-453.71,0.0005041,120]
[377181955,1754268701775,-661.4,0.0005041,120]
[377181956,1754268701785,-664.09,0.0005041,120]
[377181957,1754268701795,-400.0,0.0005041,120]
[377181958,1754268701806,-400.0,0.0005041,120]
[377181959,1754268701816,-174.9684023,0.0005041,120]
[377181960,1754268701828,-400.0,0.0005041,120]
[377181961,1754268701841,-349.84,0.0005041,120]
[377181962,1754268701853,-855.87,0.0005041,120]
[377181963,1754268701863,-400.0,0.0005041,120]
[377181964,1754268701873,-512.13107713,0.0005041,120]
[377181965,1754268701883,-467.5,0.0005041,120]
[377181966,1754268701893,-598.51,0.0005041,30]
[377181967,1754268701904,-1194.47,0.0005041,120]
[377181968,1754268701915,-400.0,0.0005041,120]
[377181969,1754268701925,-400.0,0.0005041,120]
[377181970,1754268701934,-400.0,0.0005041,120]
[377181971,1754268701943,-510.02,0.0005041,120]
[377181972,1754268701953,-718.03,0.0005041,120]
[377181973,1754268701962,-418.52,0.0005041,120]
[377181974,1754268701971,-400.0,0.0005041,120]
[377181975,1754268701982,-400.0,0.0005041,120]
[377181976,1754268701992,-489.19,0.0005041,120]
[377181977,1754268702002,-1095.36,0.0005041,120]
[377181978,1754268702011,-400.0,0.0005041,120]
[377181979,1754268702021,-1000.0,0.0005041,120]
[377181980,1754268702030,-990.86,0.0005041,120]
[377181981,1754268702039,-400.0,0.0005041,120]
[377181982,1754268702049,-400.0,0.0005041,120]
[377181983,1754268702059,-400.0,0.0005041,120]
[377181984,1754268702069,-850.97,0.0005041,120]
[377181985,1754268702079,-865.45,0.0005041,120]
[377181986,1754268702089,-400.0,0.0005041,120]
[377181987,1754268702098,-1434.0,0.0005041,120]
[377181988,1754268702109,-607.27,0.0005041,120]
[377181989,1754268702119,-400.0,0.0005041,120]
[377181990,1754268702129,-400.0,0.0005041,120]
[377181991,1754268702139,-675.28,0.0005041,120]
[377181992,1754268702149,-400.0,0.0005041,120]
[377181993,1754268702160,-400.0,0.0005041,7]
[377181994,1754268702171,-400.0,0.0005041,120]
[377181995,1754268702181,-400.0,0.0005041,120]
[377181996,1754268702192,-400.0,0.0005041,120]
[377181997,1754268702416,-400.0,0.0005041,120]
[377181998,1754268702454,-400.0,0.0005041,120]
[377181999,1754268702463,-400.0,0.0005041,120]
[377182000,1754268702472,-750.62,0.0005041,120]
[377182001,1754268702482,-492.25,0.0005041,120]
[377182002,1754268702491,-400.0,0.0005041,120]
[377182003,1754268702501,-400.0,0.0005041,120]
[377182004,1754268702510,-400.0,0.0005041,120]
[377182005,1754268702520,-787.81,0.0005041,120]
[377182006,1754268702530,-400.0,0.0005041,120]
[377182007,1754268702539,-565.68,0.0005041,120]
[377182008,1754268702548,-900.36,0.0005041,120]
[377182009,1754268702557,-400.0,0.0005041,120]
[377182010,1754268702568,-883.51,0.0005041,120]
[377182011,1754268702577,-975.62,0.0005041,120]
[377182012,1754268702587,-400.0,0.0005041,120]
[377182013,1754268702597,-990.06,0.0005041,120]
[377182014,1754268702608,-870.66,0.0005041,120]
[377182015,1754268702617,-1058.79,0.0005041,120]
[377182016,1754268702626,-1110.44,0.0005041,120]
[377182017,1754268702636,-400.0,0.0005041,120]
[377182018,1754268702645,-553.62,0.0005041,120]
[377182019,1754268702655,-798.77,0.0005041,120]
[377182020,1754268702664,-1232.01,0.0005041,120]
[377182021,1754268702674,-1443.52,0.0005041,120]
[377182022,1754268702685,-400.0,0.0005041,120]
[377182023,1754268702694,-1344.32,0.0005041,120]
[377182024,1754268702704,-400.0,0.0005041,120]
[377182025,1754268702713,-1013.93,0.0005041,120]
[377182026,1754268702723,-400.0,0.0005041,120]
[377182027,1754268702733,-658.48,0.0005041,120]
[377182028,1754268702742,-871.17,0.0005041,120]
[377182029,1754268702751,-400.0,0.0005041,120]
[377182030,1754268702761,-702.32,0.0005041,120]
[377182031,1754268702771,-400.0,0.0005041,120]
[377182032,1754268702781,-400.0,0.0005041,120]
[377182033,1754268702792,-400.0,0.0005041,120]
[377182034,1754268702801,-400.0,0.0005041,120]
[377182035,1754268702811,-545.46,0.0005041,120]
[377182036,1754268702822,-556.94,0.0005041,120]
[377182037,1754268702832,-151.0,0.0005041,120]
[377182038,1754268702841,-442.97,0.0005041,120]
[377182039,1754268702851,-400.0,0.0005041,120]
[377182040,1754268702861,-602.84,0.0005041,120]
[377182041,1754268702871,-400.0,0.0005041,120]
[377182042,1754268702880,-400.0,0.0005041,120]
[377182043,1754268702889,-457.77,0.0005041,120]
[377182044,1754268702898,-703.12,0.0005041,120]
[377182045,1754268702909,-857.91,0.0005041,120]
[377182046,1754268702918,-705.48,0.0005041,120]
[377182047,1754268702927,-400.0,0.0005041,120]
[377182048,1754268702937,-466.3140136,0.0005041,120]
[377182049,1754268702948,-871.66,0.0005041,120]
[377182050,1754268702957,-400.0,0.0005041,120]
[377182051,1754268702967,-400.0,0.0005041,120]
[377182052,1754268702976,-400.0,0.0005041,120]
[377182053,1754268702984,-1332.56,0.0005041,120]
[377182054,1754268702994,-400.0,0.0005041,120]
[377182055,1754268703003,-1325.47,0.0005041,120]
[377182056,1754268703012,-689.05,0.0005041,120]
[377182057,1754268703021,-400.0,0.0005041,120]
[377182058,1754268703031,-1436.9,0.0005041,120]
[377182059,1754268703040,-1022.67,0.0005041,120]
[377182060,1754268703050,-462.19,0.0005041,120]
[377182061,1754268703059,-400.0,0.0005041,120]
[377182062,1754268703068,-400.0,0.0005041,120]
[377182063,1754268703078,-1537.44,0.0005041,120]
[377182064,1754268703089,-841.11,0.0005041,120]
[377182065,1754268703098,-400.0,0.0005041,120]
[377182066,1754268703109,-400.0,0.0005041,120]
[377182067,1754268703118,-664.01,0.0005041,120]
[377182068,1754268703128,-151.0,0.0005041,120]
[377182069,1754268703138,-400.0,0.0005041,120]
[377182070,1754268703148,-452.74,0.0005041,120]
[377182071,1754268703157,-1114.01,0.0005041,120]
[377182072,1754268703167,-891.04,0.0005041,120]
[377182073,1754268703176,-771.0,0.0005041,120]
[377182074,1754268703187,-400.0,0.0005041,120]
[377182075,1754268703197,-400.0,0.0005041,120]
[377182076,1754268703206,-400.0,0.0005041,120]
[377182077,1754268703215,-1272.49,0.0005041,120]
[377182078,1754268703225,-458.09,0.0005041,120]
[377182079,1754268703235,-400.0,0.0005041,120]
[377182080,1754268703245,-1179.25,0.0005041,120]
[377182081,1754268703256,-484.25,0.0005041,60]
[377182082,1754268703266,-400.0,0.0005041,120]
[377182083,1754268703276,-151.0,0.0005041,120]
[377182084,1754268703286,-414.36,0.0005041,120]
[377182085,1754268703296,-400.0,0.0005041,120]
[377182086,1754268703306,-400.0,0.0005041,120]
[377182087,1754268703315,-400.0,0.0005041,120]
[377182088,1754268703327,-400.0,0.0005041,120]
[377182089,1754268703337,-726.76,0.0005041,120]
[377182090,1754268703346,-908.23,0.0005041,120]
[377182091,1754268703357,-879.77,0.0005041,120]
[377182092,1754268703367,-1411.22,0.0005041,120]
[377182093,1754268703377,-619.25,0.0005041,120]
[377182094,1754268703387,-400.0,0.0005041,120]
[377182095,1754268703396,-400.0,0.0005041,120]
[377182096,1754268703406,-2247.490381,0.0005041,120]
[377182097,1754268703416,-400.0,0.0005041,120]
[377182098,1754268703426,-400.0,0.0005041,120]
[377182099,1754268703435,-151.0,0.0005041,120]
[377182100,1754268703445,-400.0,0.0005041,120]
[377182101,1754268703454,-559.47,0.0005041,120]
[377182102,1754268703463,-186.1119872,0.0005041,120]
[377182103,1754268703473,-151.0,0.0005041,120]
[377182104,1754268703483,-400.0,0.0005041,120]
[377182105,1754268703493,-400.0,0.0005041,120]
[377182106,1754268703502,-1917.81123,0.0005041,120]
[377182107,1754268703512,-609.62,0.0005041,120]
[377182108,1754268703521,-2057.412942,0.0005041,120]
[377182109,1754268703531,-151.0,0.0005041,120]
[377182110,1754268703540,-400.0,0.0005041,120]
[377182111,1754268703549,-400.0,0.0005041,120]
[377182112,1754268703559,-400.0,0.0005041,120]
[377182113,1754268703568,-647.79,0.0005041,120]
[377182114,1754268703577,-400.0,0.0005041,120]
[377182115,1754268703587,-400.0,0.0005041,120]
[377182116,1754268703596,-642.74,0.0005041,120]
[377182117,1754268703605,-157.054446,0.0005041,120]
[377182118,1754268703615,-400.0,0.0005041,120]
[377182119,1754268703625,-400.0,0.0005041,120]
[377182120,1754268703635,-461.68,0.0005041,120]
[377182121,1754268703645,-637.63,0.0005041,120]
[377182122,1754268703655,-155.312005,0.0005041,120]
[377182123,1754268703665,-1766.94,0.0005041,120]
[377182124,1754268703674,-400.0,0.0005041,120]
[377182125,1754268703686,-400.0,0.0005041,120]
[377182126,1754268703695,-400.0,0.0005041,120]
[377182127,1754268703705,-400.0,0.0005041,120]
[377182128,1754268703715,-937.13,0.0005041,120]
[377182129,1754268703724,-400.0,0.0005041,120]
[377182130,1754268703734,-151.0,0.0005041,120]
[377182131,1754268703743,-400.0,0.0005041,120]
[377182132,1754268703752,-1018.9,0.0005041,120]
[377182133,1754268703763,-151.0,0.0005041,120]
[377182134,1754268703773,-400.0,0.0005041,120]
[377182135,1754268703784,-1452.21,0.0005041,120]
[377182136,1754268703794,-191.106438,0.0005041,120]
[377182137,1754268703803,-682.6,0.0005041,120]
[377182138,1754268703813,-688.82,0.0005041,120]
[377182139,1754268703823,-400.0,0.0005041,120]
[377182140,1754268703833,-400.0,0.0005041,120]
[377182141,1754268703844,-528.094712,0.0005041,120]
[377182142,1754268703854,-400.0,0.0005041,120]
[377182143,1754268703866,-398.0,0.0005041,120]
[377182144,1754268703877,-400.0,0.0005041,120]
[377182145,1754268703890,-400.0,0.0005041,120]
[377182146,1754268703902,-970.46,0.0005041,120]
[377182147,1754268703913,-202.71598991,0.0005041,120]
[377182148,1754268703923,-227.87641405,0.0005041,120]
[377182149,1754268703933,-151.0,0.0005041,120]
[377182150,1754268703943,-400.0,0.0005041,120]
[377182151,1754268703953,-151.0,0.0005041,120]
[377182152,1754268703964,-531.89502731,0.0005041,120]
[377182153,1754268703975,-400.0,0.0005041,120]
[377182154,1754268703985,-1380.71,0.0005041,120]
[377182155,1754268703995,-535.75,0.0005041,120]
[377182156,1754268704005,-777.09,0.0005041,120]
[377182157,1754268704014,-400.0,0.0005041,120]
[377182158,1754268704024,-821.49,0.0005041,120]
[377182159,1754268704033,-1683.71,0.0005041,120]
[377182160,1754268704043,-400.0,0.0005041,120]
[377182161,1754268704052,-400.0,0.0005041,120]
[377182162,1754268704061,-400.0,0.0005041,120]
[377182163,1754268704071,-400.0,0.0005041,120]
[377182164,1754268704081,-400.0,0.0005041,120]
[377182165,1754268704091,-400.0,0.0005041,120]
[377182166,1754268704099,-400.0,0.0005041,120]
[377182167,1754268704111,-441.1,0.0005041,120]
[377182168,1754268704121,-940.26,0.0005041,120]
[377182169,1754268704130,-400.0,0.0005041,120]
[377182170,1754268704140,-1587.13,0.0005041,120]
[377182171,1754268704150,-400.0,0.0005041,120]
[377182172,1754268704160,-716.15,0.0005041,120]
[377182173,1754268704170,-400.0,0.0005041,120]
[377182174,1754268704179,-400.0,0.0005041,120]
[377182175,1754268704189,-400.0,0.0005041,120]
[377182176,1754268704198,-1505.99,0.0005041,120]
[377182177,1754268704208,-151.0,0.0005041,60]
[377182178,1754268704217,-1532.73,0.0005041,120]
[377182179,1754268704226,-1445.81,0.0005041,120]
[377182180,1754268704237,-400.0,0.0005041,120]
[377182181,1754268704247,-400.0,0.0005041,120]
[377182182,1754268704256,-400.0,0.0005041,120]
[377182183,1754268704266,-400.0,0.0005041,120]
[377182184,1754268704275,-400.0,0.0005041,120]
[377182185,1754268704285,-475.81,0.0005041,120]
[377182186,1754268704294,-500.0,0.0005041,120]
[377182187,1754268704304,-811.21,0.0005041,120]
[377182188,1754268704313,-779.09,0.0005041,120]
[377182189,1754268704323,-628.6,0.0005041,120]
[377182190,1754268704332,-400.0,0.0005041,120]
[377182191,1754268704341,-583.94,0.0005041,120]
[377182192,1754268704350,-400.0,0.0005041,120]
[377182193,1754268704363,-1655.42,0.0005041,120]
[377182194,1754268704379,-400.0,0.0005041,120]
[377182195,1754268704389,-400.0,0.0005041,120]
[377182196,1754268704399,-400.0,0.0005041,120]
[377182197,1754268704409,-519.83,0.0005041,120]
[377182198,1754268704418,-400.0,0.0005041,120]
[377182199,1754268704428,-400.0,0.0005041,120]
[377182200,1754268704437,-738.64,0.0005041,120]
[377182201,1754268704446,-408.39388015,0.0005041,120]